Cogmind - Beta 13 @@@ ROGUE MODE // 2024.04.10 @ 04:52:16 Player: Miwa Result: Self-destructed Performance ------------- Evolutions (1) 500 Regions Visited (3) 600 Robots Destroyed (34) 170 Value Destroyed (797) 797 Prototype IDs (1) 20 Alien Tech Used (0) 0 Bonus (0) 0 TOTAL SCORE: 2087 Bonus ------- None Cogmind --------- Core Integrity 288/400 Matter 182/300 Energy 224/250 System Corruption 0% Temperature Cool (12) Movement Flying (117) Ox1 Location -9/Materials Parts ------- > --- POWER (1) -------- Ion Engine > --- PROPULSION (3) --- Flight Unit Flight Unit > --- UTILITY (3) ------ Small Storage Unit Weight Redist. System Experimental Sensor Array > --- WEAPON (2) ------- Rocket Launcher > --- INVENTORY (8) ---- Flak Cannon Datajack Peak State ------------ > --- POWER ------------ Light Nuclear Core > --- PROPULSION ------- Flight Unit Flight Unit Flight Unit > --- UTILITY ---------- Small Storage Unit Weight Redist. System Experimental Sensor Array > --- WEAPON ----------- Heavy Assault Rifle Heavy Assault Rifle > --- INVENTORY -------- Ion Engine Flight Unit Flight Unit Flight Unit Flak Cannon Rocket Launcher Datajack [Rating: 23] Favorites ----------- Power Ion Engine Engine Ion Engine Power Core Light Nuclear Core Propulsion Aluminum Leg Leg Aluminum Leg Hover Unit Hover Unit Flight Unit Flight Unit Utility Small Storage Unit Device Experimental Sensor Array Storage Small Storage Unit Processor Transport Network Coupler Weapon Medium Laser Energy Gun Medium Laser Ballistic Gun Assault Rifle Ballistic Cannon Flak Cannon Launcher Rocket Launcher Build | -11 -10 -10 -9 ------- Run | Yrd Mat Min Mat Slots Evolved 2 | . . . 2 Power . | . . . . Propulsion 1 | . . . 1 Utility 1 | . . . 1 Weapon . | . . . . Parts Attached 41 | 6 8 4 23 Power 6 | 1 . 1 4 Engine 5 | 1 . 1 3 Core 1 | . . . 1 Reactor . | . . . . Propulsion 22 | 2 6 1 13 Treads . | . . . . Leg 11 | 2 4 1 4 Wheel . | . . . . Hover 5 | . 2 . 3 Flight 6 | . . . 6 Utility 5 | 1 1 1 2 Device 3 | . . 1 2 Storage 1 | 1 . . . Processor 1 | . 1 . . Hackware . | . . . . Protection . | . . . . Artifact . | . . . . Weapon 8 | 2 1 1 4 Energy Gun 3 | 1 1 1 . Energy Cannon . | . . . . Ballistic Gun 3 | 1 . . 2 Ballistic Cannon 1 | . . . 1 Launcher 1 | . . . 1 Special Weapon . | . . . . Impact Weapon . | . . . . Slashing Weapon . | . . . . Piercing Weapon . | . . . . Special Melee Weapon . | . . . . Unidentified Prototypes 1 | . . 1 . Parts Lost 11 | . . 2 9 Power 2 | . . 1 1 Propulsion 5 | . . . 5 Utility 1 | . . . 1 Weapon 3 | . . 1 2 Highest Loss Streak 5 | . . 2 5 To Critical Strikes . | . . . . Average Slot Usage (%) 93 | . 91 99 86 Engine 12 | . 14 13 6 Leg 21 | . 26 28 3 Hover 4 | . 1 . 13 Flight 3 | . . . 15 Device 6 | . . 2 20 Storage 13 | . 14 14 11 Processor 6 | . 6 11 . Energy Gun 11 | . 13 17 1 Ballistic Gun 10 | . 14 10 5 Ballistic Cannon 1 | . . . 4 Naked Turns . | . . . . Heaviest Build 18 | 14 14 14 18 Greatest Support 30 | 20 20 20 30 Greatest Overweight (x) 2 | . . . 2 Average Overweight (x) . | . . . . Largest Inventory Capacity 8 | 8 8 8 8 Average Capacity 7 | 7 8 8 8 Most Carried 8 | 5 8 8 8 Average Carried 7 | 3 7 7 6 Final Capacity 8 | 8 8 8 8 Final Carried 8 | 4 8 8 2 Class Distribution -------------------- 87% | Mutant 12% | Scavenger-Mutant Dominant Class ---------------- Mutant | -10/Materials Mutant | -10/Mines Mutant | -9/Materials Resources | -11 -10 -10 -9 ----------- Run | Yrd Mat Min Mat Matter Collected 899 | 218 174 152 355 Remotely . | . . . . Salvage Created 950 | . 350 326 274 Parts 50 | . 15 10 25 Haulers Intercepted 1 | . 1 . . Recyclers Shooed 4 | . 2 1 1 Parts Field Recycled . | . . . . Retrieved Matter . | . . . . Parts Self-Destructed . | . . . . Prevented . | . . . . Kills | -11 -10 -10 -9 ------- Run | Yrd Mat Min Mat Combat Hostiles Destroyed 25 | . 4 7 14 Guns 13 | . 4 6 3 Cannons 9 | . . . 9 AOE 2 | . . . 2 Classes Destroyed 8 | . 4 2 2 Builder 1 | . . . 1 Tunneler 1 | . . 1 . Hauler 1 | . 1 . . Recycler 3 | . 1 2 . Watcher 3 | . 2 . 1 Swarmer 10 | . . 3 7 Grunt 13 | . 4 4 5 Sentry 2 | . . . 2 Best Kill Streak 7 | . 3 2 7 Combat Bots Only 7 | . 2 2 7 Max Kills in Single Turn 2 | . 1 1 2 Gunslinging . | . . . . Exploded 1 | . . . 1 Melee . | . . . . Uniques/NPCs Destroyed . | . . . . Combat | -11 -10 -10 -9 -------- Run | Yrd Mat Min Mat Hostile Shots Fired 145 | . 22 45 78 Missed 54 | . 8 17 29 Damage Taken 1217 | . 185 342 690 Core 230 | . 37 81 112 Absorbed by Shields . | . . . . Core Remaining (%) 76 | 100 . 52 . Volleys Fired 117 | . 30 40 47 Largest 2 | . 2 2 2 Hottest 90 | . 70 90 46 Shots Fired 188 | . 60 69 59 Gun 161 | . 60 69 32 Cannon 21 | . . . 21 Launcher 6 | . . . 6 Special . | . . . . Kinetic 111 | . 30 28 53 Thermal 71 | . 30 41 . Explosive 6 | . . . 6 Electromagnetic . | . . . . Robot Hit Streak 14 | . 6 11 14 Robot Miss Streak 6 | . 5 3 6 Penetration Max . | . . . . Secondary Targets 1 | . 1 . . Max Gunslinging Chain 1 | . 1 . . Shots Hit Robots 139 | . 37 49 53 Core Hits 65 | . 18 14 33 Critical Kills . | . . . . Critical Parts Destroyed 1 | . . . 1 Critical Strikes 6 | . 1 4 1 Burn 5 | . 1 4 . Destroy 1 | . . . 1 Melee Attacks . | . . . . Impact . | . . . . Slashing . | . . . . Piercing . | . . . . Sneak Attacks . | . . . . Combat Hostiles . | . . . . Follow-up Attacks . | . . . . Damage Inflicted 2297 | . 473 668 1156 Guns 1599 | . 473 668 458 Cannons 368 | . . . 368 Explosions 330 | . . . 330 Melee . | . . . . Ramming . | . . . . Kinetic 1338 | . 245 267 826 Thermal 671 | . 228 401 42 Explosive 288 | . . . 288 Electromagnetic . | . . . . Impact . | . . . . Slashing . | . . . . Piercing . | . . . . Highest Corruption . | . . . . Average Corruption . | . . . . Corruption Purged . | . . . . Corruption Blocked . | . . . . Overload Shots . | . . . . Overflow Damage 70 | . . . 70 Projectiles . | . . . . Explosions 70 | . . . 70 Melee . | . . . . Knockbacks 10 | . . . 10 Impact . | . . . . Kinetic 8 | . . . 8 Secondary 2 | . . . 2 Self-Inflicted Damage 59 | . . . 59 Shots 1 | . . . 1 Rammed . | . . . . Targets Rammed . | . . . . Kicked . | . . . . Crushed . | . . . . Highest Temperature 130 | . 114 130 52 Average Temperature 37 | . 39 46 16 Received Heat Transfer 510 | . 105 174 231 Siege Activations . | . . . . Robots Corrupted . | . . . . Combat Hostiles . | . . . . Parts Fried . | . . . . Impact Corruptions . | . . . . Robots Melted 1 | . . 1 . Combat Hostiles 1 | . . 1 . Parts Melted 3 | . 1 2 . Heat Transferred 2258 | . 740 1468 50 Parts Sabotaged . | . . . . Parts Stolen . | . . . . Parts Stripped . | . . . . Power Chain Reactions . | . . . . Alert | -11 -10 -10 -9 ------- Run | Yrd Mat Min Mat Peak Influence 224 | . 163 153 224 Initial 28 | . . 28 . Average 55 | . 47 54 76 Maximum Alert Level 1 | . . . 1 Low Security (%) 95 | 100 100 100 83 Level 1 4 | . . . 16 Level 2 . | . . . . Level 3 . | . . . . Level 4 . | . . . . Level 5 . | . . . . High Security . | . . . . Max Security . | . . . . Squads Dispatched 1 | . 1 . . Investigation . | . . . . Extermination . | . . . . Reinforcement 1 | . 1 . . Assault . | . . . . Garrison . | . . . . Intercept . | . . . . Searches Triggered . | . . . . Construction Impeded . | . . . . Haulers Reinforced . | . . . . Active Scanning Responses . | . . . . Cargo Convoy Interrupts . | . . . . Stealth | -11 -10 -10 -9 --------- Run | Yrd Mat Min Mat Distress Signals 5 | . 3 . 2 Communications Jammed . | . . . . Distress Signals . | . . . . Times Spotted 42 | . 14 7 21 Peak Tracking Total 8 | . 4 3 8 Tactical Retreats 2 | . 1 . 1 Traps | -11 -10 -10 -9 ------- Run | Yrd Mat Min Mat Traps Triggered . | . . . . Indirectly . | . . . . Trap Hack Attempts . | . . . . Triggered . | . . . . Disarmed . | . . . . Reprogrammed . | . . . . Reused . | . . . . Traps Extracted . | . . . . Installed . | . . . . Triggered . | . . . . Machines | -11 -10 -10 -9 ---------- Run | Yrd Mat Min Mat Machines Disabled 2 | . . . 2 Max in Single Turn 1 | . . . 1 Machines Repaired . | . . . . Machines Dismantled . | . . . . Machines Sabotaged . | . . . . Overloaded Fab Kills . | . . . . Hacking | -11 -10 -10 -9 --------- Run | Yrd Mat Min Mat Machines Accessed 10 | . 6 1 3 Terminals 8 | . 5 1 2 Fabricators . | . . . . Repair Stations 1 | . . . 1 Recycling Units 1 | . 1 . . Scanalyzers . | . . . . Garrison Access . | . . . . Total Hacks 25 | . 14 4 7 Successful 12 | . 9 . 3 Failed 13 | . 5 4 4 Catastrophic 1 | . 1 . . Database Lockouts . | . . . . Manual 20 | . 12 4 4 Terminals 21 | . 13 4 4 Fabricators . | . . . . Repair Stations 3 | . . . 3 Recycling Units 1 | . 1 . . Scanalyzers . | . . . . Garrison Access . | . . . . Terminal Hacks 3 | . 3 . . Level Access Points 1 | . 1 . . Branch Access Points 1 | . 1 . . Zone Layout 1 | . 1 . . Fabricator Hacks . | . . . . Repair Station Hacks 1 | . . . 1 Scan Component 1 | . . . 1 Recycling Unit Hacks 1 | . 1 . . Report Inventory 1 | . 1 . . Scanalyzer . | . . . . Garrison Access Hacks . | . . . . Unauthorized Hacks 7 | . 5 . 2 Terminals 7 | . 5 . 2 Assimilate 2 | . 1 . 1 Botnet 5 | . 4 . 1 Fabricators . | . . . . Repair Stations . | . . . . Recycling Units . | . . . . Scanalyzers . | . . . . Garrison Access . | . . . . Data Cores Recovered . | . . . . Used . | . . . . Hacking Detections 9 | . 5 1 3 Full Trace Events 1 | . . 1 . Feedback Events . | . . . . Feedback Blocked . | . . . . Robot Schematics Acquired . | . . . . Robots Built . | . . . . Authchips . | . . . . Time . | . . . . Total Robot Build Rating . | . . . . Part Schematics Acquired . | . . . . Parts Built . | . . . . Authchips . | . . . . Time . | . . . . Total Part Build Rating . | . . . . Parts Repaired . | . . . . Time . | . . . . Parts Recycled . | . . . . Recycled Matter . | . . . . Retrieved Matter . | . . . . Retrieved Components . | . . . . Parts Scanalyzed . | . . . . Part Schematics Acquired . | . . . . Parts Damaged . | . . . . Bothacking | -11 -10 -10 -9 ------------ Run | Yrd Mat Min Mat Used RIF Installer . | . . . . Robots Hacked . | . . . . Non-combat . | . . . . Combat . | . . . . Robot Hacks Applied . | . . . . Relay Couplers Released . | . . . . Fabnet Peak Effective % . | . . . . Robots Rewired . | . . . . Allies Hacked . | . . . . Hacks Repelled . | . . . . Allies | -11 -10 -10 -9 -------- Run | Yrd Mat Min Mat Total Allies . | . . . . Largest Group . | . . . . Highest-Rated Group . | . . . . Highest-Rated Ally . | . . . . Total Orders . | . . . . Ally Attacks . | . . . . Total Damage . | . . . . Kills . | . . . . Allies Corrupted . | . . . . Allies Melted . | . . . . Intel | -11 -10 -10 -9 ------- Run | Yrd Mat Min Mat Robot Analysis Total . | . . . . Derelict Logs Recovered 1 | . . 1 . Drone Launches . | . . . . Drone Recoveries . | . . . . Exploration | -11 -10 -10 -9 ------------- Run | Yrd Mat Min Mat Turns Passed 2551 | 75 924 910 642 Spaces Moved 1891 | 58 662 651 520 Core 14 | 14 . . . Treads . | . . . . Legs 1323 | 44 604 651 24 Wheels . | . . . . Hover 409 | . 58 . 351 Flight 145 | . . . 145 Fastest Speed 34 | 50 56 120 34 Average Speed 98 | 103 114 120 50 Slowest Speed 200 | 120 120 120 200 Overloaded Moves . | . . . . Propulsion Burnouts . | . . . . Robots Hopped . | . . . . Cave-ins Triggered . | . . . . Exploration Rate (%) 51 | 4 77 98 27 Regions Visited 3 Branch Regions 1 Pre-discovered Areas . | . . . . Known Exits Taken 2 | . 1 1 . Unknown Exits Taken 1 | 1 . . . Scrap Searched 2 | . . 2 . Spaces Dug . | . . . . Terrain Destroyed 33 | . . . 33 Melee . | . . . . Projectile . | . . . . AOE 33 | . . . 33 Terrain Rammed . | . . . . Walls Destroyed . | . . . . Machines Disabled . | . . . . Actions | -11 -10 -10 -9 --------- Run | Yrd Mat Min Mat Total 2389 | 72 768 711 838 Wait 298 | . 57 12 229 Move 1888 | 57 661 650 520 Hop . | . . . . Pick Up 26 | 9 7 2 8 Fast Attach 9 | 1 1 2 5 Attach 17 | 5 1 1 10 Detach 1 | . 1 . . Swap 15 | . 6 1 8 Drop 18 | . 4 3 11 Fire 117 | . 30 40 47 Melee . | . . . . Ram . | . . . . Kick . | . . . . Crush . | . . . . Escape Stasis . | . . . . Rewire . | . . . . Trap . | . . . . Miscellaneous . | . . . . Route ------- -11/Scrapyard -10/Materials (discovered 5 exits: *Mat x3 / *Min x2) -10/Mines (discovered 2 exits: *Mat x2) -9/Materials (discovered 2 exits: Mat / Min) History --------- Turn | Location | Event 8 | -11/Scrapyard | Discovered new exit (range 15) 76 | -11/Scrapyard | Entered Materials 122 | -10/Materials | Discovered new exit (range 7) 305 | -10/Materials | Build established: Mutant 551 | -10/Materials | Discovered new exit (range 14) 629 | -10/Materials | Discovered new exit (range 16) 739 | -10/Materials | Discovered new exit (range 7) 943 | -10/Materials | Identified exit to Materials 943 | -10/Materials | Identified exit to Mines 1000 | -10/Materials | Entered Mines 1134 | -10/Mines | Received a Rocket Launcher from a helpful Derelict 1161 | -10/Mines | Discovered exit to Materials (range 10) 1167 | -10/Mines | Learned 2 Materials zone layouts 1196 | -10/Mines | Discovered exit to Materials (range 11) 1754 | -10/Mines | Found a damaged Exp. Sensor Array with a note attached 1757 | -10/Mines | Found Prototype Device 1757 | -10/Mines | Identified Exp. Sensor Array 1910 | -10/Mines | Entered Materials 1910 | -9/Materials | Evolved 2 slots: Propulsion x1, Utility x1 1911 | -9/Materials | Identified exit to Mines 1911 | -9/Materials | Identified exit to Materials 2199 | -9/Materials | Destroyed 7 combat bots 2508 | -9/Materials | Lost 5 parts (1p2n2w) 2552 | -9/Materials | Self-destructed Last Messages --------------- K-01 Serf collects debris. U-05 Engineer lays Concrete. Acquired 20 matter. U-05 Engineer builds a Wall. U-05 Engineer lays Concrete. The unstable cave ceiling collapses. U-05 Engineer lays Concrete. K-01 Serf collects debris. U-05 Engineer lays Concrete. K-01 Serf collects debris. U-05 Engineer lays Concrete. U-05 Engineer builds a Wall. K-01 Serf collects debris. Destroyed Hover Unit. U-05 Engineer builds a Wall. W-16 Scout destroyed. Acquired 2 matter. Fusion Modulator explodes. Flight Unit destroyed. Destroyed Flight Unit. Map ----- +----------------------------------------------------+ | ?????????????????????????????????????????????????? | | ?????????????????????????????????????????????????? | | ?????????????????????????????????????????????????? | | ?????????????????????????????????????????????????? | | ?????????????????????????????????????????????????? | | ?????????????????????????????????????????????????? | | ????????????????????????############?????????????? | | ????????????????????????# # #?????????????? | | ????????????????????????# < # #?????????????? | | ????????????????????????# # #?????????????? | | ????????????????????????# # #?????????????? | | ????????????????????????# ######????????? | | ????????????????????????# #????????? | | ????????????????????????# #### #????????? | | ???????????????????????## #####+##### #??####### | | ??????????????????????? # # ## #??# | | ??????????????????????? # # T """ ## #### | | ??????????????????????? # + """ ## + | | ????????????????????????# #????????????????????? | | ????????????????????????+ k#????????????????????? | | ????????????????????????# #????????????????????? | | ????????????????????????# #????????????????????? | | ????????????????????????# #????????????????????? | | ??????????############### #????????????????????? | | ?????????? #????????????????????? | | ?????????? @r #????????????????????? | | ?????? ????"" #????????????????????? | | ?????? """" ;#???????????????????? | | ?????? """" ;#???????????????????? | | ??????# ##??????????????????? | | ??????# ! #??????????????????? | | ????? # [[ === ##??????????????????? | | ????? [[ === #???????????????????? | | ???? [[ == #???????????????????? | | ???? ##???????????????????? | | ???? #????????????????????? | | ?????? ## [[ #????????????????????? | | ?????? ## [[ k#??###???????????????? | | ????? ??# #? ???????????????? | | ????? ???# #? ""????????????????? | | ?????? != ???????# # """ ???????????? | | ?????? !?????????# # """ ????????????? | | ?????????????????# ????????????? | | ??????????######## #"S ????????????? | | ??????????# # "" ! #???????????? | | ??????????# # # "" #???????????? | | ??????????# # = #???????????? | | ??????????# """ + [ # #########??????????? | | ??????????# """ # [ #### """ #??????????? | | ??????????#| """ # ! + "R" #??????????? | +----------------------------------------------------+ Best States ------------- Heat Dissipation 28 Energy Generation 14 Energy Capacity 250 Matter Stores 300 Matter Capacity 300 Sight Range 16 Robot Scan Range 20 Terrain Scan Density 10 Additional Mass Support 6 Evasion (%) 63 Item Schematics ----------------- None Robot Schematics ------------------ None Fabricated ------------ Nothing Alien Tech Used ----------------- None Achievements -------------- None Challenges ------------ None Game ------ Seed ArmoredSurgeInterpreter Manual? 0 Play Time 00:29:04 Cumulative 33.3 hours Start 2024.04.10 @ 04:10:10 End 2024.04.10 @ 04:52:16 Sessions 1 Manual Loads 0 Difficulty Rogue Special Mode None Game No. 48 Rogue 48 Adventurer 0 Explorer 0 Win Type - Total 0 Types 0/0/0/0/0/0/0/0/0 Lore% 26 Gallery% 29 Achievement% 28 Wizard Run 0 Options --------- Layout 1 ASCII 0 Keyboard 0 Movement Mouse Keybinds 0 Fullscreen 1 Font 28/SmallcapsGlow Map View 55x47 Zoom Use 0% Tactical HUD 0 Map Filters NONE Filters NONE Steam 1 RUN: 6e581000-5205-4fad-8e9c-344127b47648